bitfinex-derivatives/quotes_SOLF0:USTF0_20250808
["timestamp","ask_amount","ask_price","bid_price","bid_amount"]
[1754671128862,3.07806466,176.1,176.09,4.07636253]
[1754671129261,3.07806466,176.1,176.09,9.75496253]
[1754671129654,0.03806466,176.1,176.09,9.75496253]
[1754671129858,12.74048993,176.11,176.1,5.6783]
[1754671130054,3.04,176.14,176.1,375.12]
[1754671130262,3.04,176.14,176.13,4.07636253]
[1754671133562,3.04,176.14,176.13,9.75366253]
[1754671133868,3.04,176.14,176.12,0.04128639]
[1754671134167,3.04,176.17,176.12,0.04128639]
[1754671134366,5.6778,176.12,176.1,4.07636253]
[1754671134568,3.04,176.11,176.1,4.07636253]
[1754671134970,3.04,176.11,176.08,4.07636253]
[1754671135674,3.04,176.1,176.08,4.07636253]
[1754671136887,5.6784,176.1,176.08,4.07636253]
[1754671137066,3.04,176.09,176.08,0.62912214]
[1754671137266,3.04,176.09,176.06,145.7795]
[1754671137267,3.04,176.09,176.06,4.07636253]
[1754671138172,8.7192,176.07,176.06,4.07636253]
[1754671139277,5.6796,176.06,176.04,144.17636253]
[1754671139478,3.04,176.05,176.04,144.17636253]
[1754671140373,8.7199,176.05,176.04,144.17636253]
[1754671140574,3.04,176.05,176.04,140.1]
[1754671141384,12.7856509,176.06,176.03,4.07636253]
[1754671141580,3.04,176.04,176.03,4.07636253]
[1754671142182,3.04,176.04,176.01,145.8009]
[1754671142183,3.04,176.03,176.0,4.07636253]
[1754671142377,3.04,176.04,176.02,4.07636253]
[1754671142783,3.04,176.03,176.02,4.07636253]
[1754671145080,3.08109228,176.05,176.02,4.07636253]
[1754671145280,0.04109228,176.05,176.04,4.07636253]
[1754671145980,3.08109228,176.05,176.04,4.07636253]
[1754671147079,3.08109228,176.05,176.04,0.57853546]
[1754671148083,3.08109228,176.05,176.02,144.21636253]
[1754671148286,3.08109228,176.05,176.02,4.07636253]
[1754671148479,15.8238208,176.05,176.02,4.07636253]
[1754671148681,3.26,176.04,176.02,4.07636253]
[1754671148983,5.6805,176.03,176.0,4.07636253]
[1754671149187,3.26,176.02,176.0,4.07636253]
[1754671150080,3.26,176.04,176.01,4.07636253]
[1754671150687,3.26,176.04,176.01,9.75736253]
[1754671150881,3.26,176.04,176.01,4.07636253]
[1754671151186,5.6805,176.03,176.01,4.07636253]
[1754671151385,3.26,176.02,176.01,4.07636253]
[1754671151588,3.26,176.02,175.97,4.07636253]
[1754671151885,12.79658886,175.98,175.97,9.75856253]
[1754671153386,3.26,175.98,175.97,9.75856253]
[1754671153585,3.26,175.98,175.97,4.07636253]
[1754671154191,12.79658886,175.98,175.97,4.07636253]
[1754671154491,3.26,175.97,175.96,4.07636253]
[1754671154692,15.21237117,175.97,175.94,4.07636253]
[1754671154888,9.52997117,175.96,175.94,4.07636253]
[1754671155193,3.26,175.95,175.94,9.75976253]
[1754671155792,3.26,175.96,175.95,5.6831]
[1754671156190,9.52997117,175.97,175.96,5.6828]
[1754671156386,3.30251152,175.99,175.96,4.07636253]
[1754671156387,9.52997117,175.98,175.96,4.07636253]
[1754671156584,3.26,175.97,175.96,4.07636253]
[1754671156893,12.78997117,175.97,175.96,4.07636253]
[1754671157895,12.78997117,175.97,175.96,9.75916253]
[1754671158096,9.52997117,175.97,175.96,9.75916253]
[1754671158391,3.26,175.97,175.96,4.07636253]
[1754671158594,3.26,175.97,175.96,9.75916253]
[1754671160299,3.26,175.97,175.96,4.07636253]
[1754671161489,9.52997117,175.98,175.94,4.07636253]
[1754671161689,3.26,175.97,175.94,4.07636253]
[1754671161894,8.9426,175.97,175.94,4.07636253]
[1754671162092,12.78997117,175.96,175.94,4.07636253]
[1754671162286,3.26,175.95,175.93,140.18]
[1754671162594,9.52997117,175.96,175.93,140.18]
[1754671162792,3.26,175.94,175.93,140.18]
[1754671164295,3.26,175.93,175.9,140.18]
[1754671164499,3.26,175.92,175.87,144.25636253]
[1754671164893,3.26,175.92,175.89,9.76116253]
[1754671165198,3.26,175.9,175.89,9.76116253]
[1754671165397,3.26,175.9,175.89,4.07636253]
[1754671165798,3.26,175.9,175.87,140.18]
[1754671165990,8.9449,175.9,175.87,144.25636253]
[1754671166187,3.26,175.89,175.87,144.25636253]
[1754671166392,3.26,175.89,175.82,235.0]
[1754671166599,0.0405174,175.91,175.8,0.98813107]
[1754671166600,3.26,175.87,175.83,9.76306253]
[1754671166796,3.26,175.87,175.8,0.98813107]
[1754671166994,3.26,175.87,175.81,4.07636253]
[1754671167193,3.26,175.84,175.81,4.07636253]
[1754671167393,3.26,175.84,175.77,4.07636253]
[1754671167592,5.6879,175.81,175.77,9.76516253]
[1754671167887,3.26,175.79,175.78,4.07636253]
[1754671168287,3.29647477,175.81,175.78,4.07636253]
[1754671168499,0.03647477,175.81,175.8,4.07636253]
[1754671168698,9.52997117,175.88,175.8,144.43636253]
[1754671168892,415.56939148,176.0,175.77,4.07636253]
[1754671168893,3.26,175.85,175.77,4.07636253]
[1754671169102,3.26,175.85,175.81,4.07636253]
[1754671169397,3.26,175.85,175.81,9.76396253]
[1754671169593,3.26,175.85,175.81,4.07636253]
[1754671169800,3.26,175.84,175.81,4.07636253]
[1754671169996,3.26,175.85,175.81,9.76386253]
[1754671170395,3.26,175.85,175.81,4.07636253]
[1754671171193,3.26,175.85,175.82,5.6872]
[1754671172496,3.26,175.9,175.83,9.76326253]
[1754671172695,5.6856,175.88,175.83,4.07636253]
[1754671172892,9.52997117,175.93,175.79,375.34]
[1754671172893,3.26,175.86,175.85,9.76246253]
[1754671173098,3.26,175.92,175.85,4.07636253]
[1754671173297,5.6849,175.9,175.87,4.07636253]
[1754671173498,3.26,175.89,175.87,4.07636253]
[1754671173895,8.945,175.89,175.87,4.07636253]
[1754671174104,3.26,175.88,175.85,4.07636253]
[1754671174493,5.6856,175.88,175.85,4.07636253]
[1754671174700,3.26,175.87,175.85,4.07636253]
[1754671174897,3.26,175.87,175.79,140.34]
[1754671175105,3.26,175.86,175.84,4.07636253]
[1754671175399,3.26,175.85,175.84,4.07636253]
[1754671178005,3.26,175.85,175.79,140.3]
[1754671178200,3.26,175.85,175.82,4.07636253]
[1754671178500,3.0,175.83,175.82,4.07636253]
[1754671179199,3.0,175.88,175.79,375.3]
[1754671179411,3.0,175.88,175.82,4.07636253]
[1754671180001,5.6862,175.86,175.82,4.07636253]
[1754671180206,3.0,175.85,175.79,375.3]
[1754671180405,3.0,175.85,175.83,4.07636253]
[1754671180715,3.0,175.84,175.81,4.07636253]
[1754671181014,3.0,175.84,175.82,0.03633392]
[1754671181406,5.687,175.83,175.82,0.03633392]
[1754671181613,8.687,175.83,175.82,0.03633392]
[1754671188606,8.687,175.83,175.74,0.99009901]
[1754671188911,3.0,175.69,175.51,5.0]
[1754671189114,3.0,175.51,175.34,382.18]
[1754671189414,4.07636253,175.59,175.34,382.18]
[1754671189415,2.70546347,175.5,175.34,382.18]
[1754671189608,4.07636253,175.43,175.34,387.18]
[1754671189808,2.70546347,175.42,175.4,4.07636253]
[1754671190008,2.70546347,175.41,175.4,4.07636253]
[1754671190209,4.72117279,175.51,175.4,8.15272506]
[1754671190417,0.03687507,175.43,175.4,4.07636253]
[1754671190602,3.0,175.55,175.41,146.84]
[1754671190808,3.0,175.55,175.4,9.07636253]
[1754671191116,3.0,175.58,175.45,5.0]
[1754671191409,3.0,175.58,175.46,529.32]
[1754671191614,3.0,175.57,175.56,4.07636253]
[1754671191914,3.0,175.57,175.56,147.0]
[1754671192112,3.0,175.57,175.56,151.07636253]
[1754671192314,3.0,175.57,175.52,4.07636253]
[1754671192610,3.0,175.57,175.53,147.28]
[1754671192815,3.0,175.57,175.54,147.3]
[1754671193013,3.0,175.57,175.55,147.3]
[1754671193212,3.0,175.56,175.55,147.3]
[1754671193810,3.0,175.56,175.55,153.96622384]
[1754671195921,3.0,175.56,175.55,147.3]
[1754671196117,3.0,175.56,175.55,147.1]
[1754671196423,3.0,175.56,175.55,147.12]
[1754671197320,3.0,175.55,175.54,6.70227448]
[1754671197520,3.0,175.55,175.46,382.4]
[1754671197822,3.0,175.59,175.54,6.66622384]
[1754671198019,3.0,175.59,175.55,147.44]
[1754671198919,3.03793254,175.59,175.55,147.44]
[1754671199516,3.03793254,175.59,175.57,0.05]
[1754671199517,0.03793254,175.59,175.57,0.05]
[1754671199822,0.03793254,175.59,175.56,6.66622384]
[1754671200124,0.03793254,175.59,175.58,6.66622384]
[1754671200322,3.0,175.62,175.59,0.05]
[1754671200523,3.0,175.67,175.6,6.71622384]
[1754671200822,3.0,175.66,175.63,0.05]
[1754671201016,12.9819686,175.72,175.62,6.66622384]
[1754671201017,3.0,175.64,175.62,6.66622384]
[1754671201422,3.0,175.67,175.62,147.4]
[1754671201823,3.0,175.67,175.63,0.03719063]
[1754671202320,2.59467361,175.66,175.63,0.03719063]
[1754671202521,3.0,175.64,175.63,0.03719063]
[1754671202820,2.59467361,175.64,175.63,0.03719063]
[1754671203022,5.59467361,175.64,175.63,147.47719063]
[1754671204222,5.59467361,175.64,175.63,0.03719063]
[1754671204724,5.59467361,175.64,175.63,147.45719063]
[1754671205019,2.59467361,175.64,175.63,147.45719063]
[1754671205227,2.59467361,175.64,175.63,147.50719063]
[1754671205725,3.0,175.69,175.63,147.50719063]
[1754671206027,3.0,175.68,175.65,6.66622384]
[1754671206222,3.0,175.66,175.65,6.66622384]
[1754671206420,3.0,175.68,175.65,6.71622384]
[1754671206619,218.36491926,175.73,175.67,6.66622384]
[1754671206620,3.0,175.72,175.67,6.66622384]
[1754671206820,3.0,175.71,175.69,6.66622384]
[1754671208022,3.0,175.75,175.69,6.66622384]
[1754671208223,3.0,175.75,175.69,6.71622384]
[1754671208429,7.72117279,175.75,175.7,147.24]
[1754671208725,3.0,175.72,175.7,147.24]
[1754671208920,3.0,175.71,175.68,0.03638011]
[1754671209127,3.0,175.7,175.68,0.03638011]
[1754671209325,4.72117279,175.74,175.68,0.03638011]
[1754671209326,3.0,175.73,175.69,147.26]
[1754671209727,3.0,175.71,175.69,147.26]
[1754671209922,3.0,175.7,175.69,147.26]
[1754671210923,8.6912,175.7,175.69,147.26]
[1754671211127,3.0,175.7,175.69,147.26]
[1754671212629,5.691,175.71,175.68,0.03638011]
[1754671212831,3.0,175.69,175.68,146.99638011]
[1754671213328,13.41267279,175.69,175.68,146.96]
[1754671213530,3.0,175.68,175.62,6.71622384]
[1754671213729,5.6915,175.69,175.63,146.98]
[1754671213931,3.0,175.67,175.64,0.05]
[1754671214136,3.03894717,175.7,175.66,6.66622384]
[1754671214335,3.03894717,175.7,175.67,0.05]
[1754671214531,3.03894717,175.7,175.68,6.66622384]
[1754671214726,3.03894717,175.7,175.69,146.9]
[1754671217743,5.58804889,175.7,175.69,146.9]
[1754671218235,3.0,175.69,175.65,5.6925]
[1754671218437,3.0,175.67,175.66,146.74]
[1754671218741,3.0,175.66,175.64,6.66622384]
[1754671218942,2.54910172,175.65,175.64,6.66622384]
[1754671219139,2.54910172,175.65,175.64,12.35912384]
[1754671219341,2.54910172,175.65,175.64,12.40912384]
[1754671219541,2.54910172,175.65,175.64,159.00912384]
[1754671219753,11.3856,175.65,175.58,5.0]
[1754671219949,3.0,175.58,175.29,382.56]
[1754671220144,3.0,175.4,175.34,7.902e-05]
[1754671220350,4.71504523,175.47,175.35,6.66622384]
[1754671220546,3.0,175.45,175.36,41.44]
[1754671220749,0.03610871,175.39,175.38,5.7015]
[1754671220953,3.0,175.46,175.38,158.06622384]
[1754671221370,4.71504523,175.48,175.41,6.66622384]
[1754671221552,3.0,175.45,175.41,6.66622384]
[1754671221757,3.0,175.45,175.43,6.66622384]
[1754671221955,4.71504523,175.49,175.43,6.66622384]
[1754671222154,3.0,175.49,175.47,6.66622384]
[1754671222350,4.71504523,175.53,175.47,6.66622384]
[1754671222557,3.0,175.51,175.49,6.66622384]
[1754671222752,3.0,175.51,175.5,152.02]
[1754671223052,3.0,175.51,175.49,6.66622384]
[1754671223249,3.0,175.52,175.5,152.02]
[1754671223454,7.71504523,175.52,175.5,152.02]
[1754671223653,4.71504523,175.52,175.46,6.66622384]
[1754671223858,4.71504523,175.51,175.47,152.02]
[1754671224480,6.66622384,175.57,175.48,151.98]
[1754671224481,3.0,175.5,175.48,151.98]
[1754671225060,3.0,175.5,175.46,6.66622384]
[1754671225457,3.0,175.5,175.47,151.88]
[1754671225657,5.698,175.49,175.47,158.54622384]
[1754671225855,3.0,175.48,175.47,6.66622384]
[1754671226154,8.6986,175.47,175.46,0.03797532]
[1754671226359,3.0,175.47,175.46,151.81797532]
[1754671226559,3.0,175.47,175.46,6.66622384]
[1754671226855,8.6986,175.47,175.46,158.42622384]
[1754671227059,8.6986,175.47,175.46,158.32622384]
[1754671227253,3.0,175.47,175.46,158.32622384]
[1754671227456,8.6986,175.47,175.46,158.32622384]
[1754671227656,3.0,175.46,175.39,389.22622384]
[1754671227853,4.71558115,175.43,175.39,382.56]
[1754671228053,3.0,175.42,175.4,151.8]
[1754671228259,3.0,175.41,175.4,151.8]
[1754671229565,5.7001,175.43,175.4,151.8]
[1754671229566,3.0,175.43,175.4,151.8]
[1754671229766,3.0,175.43,175.41,6.66622384]
[1754671229971,7.71558115,175.45,175.41,6.66622384]
[1754671230159,7.71558115,175.45,175.4,151.8]
[1754671230160,4.71558115,175.47,175.43,6.66622384]
[1754671230359,7.71558115,175.46,175.43,6.66622384]
[1754671230869,7.71558115,175.46,175.4,151.8]
[1754671230870,4.71558115,175.46,175.45,6.66622384]
[1754671231166,3.03743641,175.47,175.45,158.34622384]
[1754671231864,0.03743641,175.47,175.45,158.34622384]
[1754671232561,0.03743641,175.47,175.46,151.56]
[1754671232965,0.03743641,175.47,175.46,163.86512384]
[1754671233466,0.03743641,175.47,175.46,158.16622384]
[1754671233969,4.71558115,175.48,175.46,158.16622384]
[1754671234768,4.71558115,175.48,175.47,151.36]
[1754671235869,9.28672698,175.51,175.47,151.36]
[1754671236071,6.28672698,175.52,175.5,6.66622384]
[1754671236275,3.18,175.56,175.51,6.66622384]
[1754671236576,3.18,175.55,175.52,151.18]
[1754671236764,3.18,175.55,175.53,151.2]
[1754671237664,3.18,175.55,175.54,6.66622384]
[1754671240363,9.47186011,175.61,175.54,9.66622384]
[1754671240560,229.14589747,175.89,175.53,151.2]
[1754671240561,9.47186011,175.64,175.59,6.66622384]
[1754671240762,9.47186011,175.64,175.61,6.66622384]
[1754671240969,9.47186011,175.66,175.63,6.66622384]
[1754671241169,6.66622384,175.66,175.55,3.0]
[1754671241471,9.45262769,175.62,175.56,157.70622384]
[1754671241667,9.45262769,175.63,175.56,157.70622384]
[1754671242167,5.6952,175.58,175.57,151.06]
[1754671242370,3.18,175.58,175.57,151.06]
[1754671242573,9.45262769,175.64,175.57,154.06]
[1754671242771,3.18,175.6,175.59,6.66622384]
[1754671244070,3.18,175.6,175.57,154.06]
[1754671244273,3.18,175.59,175.57,157.72622384]
[1754671244569,3.18,175.59,175.57,6.66622384]
[1754671244773,8.8747,175.59,175.58,150.8]
[1754671245368,3.18,175.65,175.59,3.0]
[1754671245578,9.45262769,175.66,175.61,6.66622384]
[1754671245774,3.18,175.65,175.62,150.72]
[1754671245974,8.8734,175.63,175.62,150.72]
[1754671248467,5.6933,175.64,175.61,9.70286558]
[1754671248669,3.18,175.65,175.63,9.66622384]
[1754671249275,5.6931,175.64,175.63,6.66622384]
[1754671249587,9.45262769,175.67,175.63,6.66622384]
[1754671249877,8.8727,175.66,175.64,153.3]
[1754671250481,8.8728,175.65,175.64,150.3]
[1754671251175,8.8728,175.65,175.63,6.70495798]
[1754671251486,8.8728,175.65,175.64,150.14]
[1754671253285,8.8728,175.65,175.64,150.06]
[1754671253979,3.18,175.65,175.64,150.06]
[1754671254181,12.63262769,175.67,175.65,3.0]
[1754671254384,3.18,175.69,175.67,3.0]
[1754671254685,8.8717,175.69,175.68,156.48622384]
[1754671255172,8.8717,175.69,175.68,6.66622384]
[1754671255376,8.8717,175.69,175.68,156.56622384]
[1754671255981,8.8717,175.69,175.68,6.66622384]
[1754671256175,8.8717,175.69,175.68,156.56622384]
[1754671258581,8.8718,175.68,175.67,2.02e-05]
[1754671258783,8.8718,175.68,175.67,109.9851202]
[1754671258982,8.8718,175.68,175.67,96.5183202]
[1754671259284,8.8731,175.64,175.63,382.74]
[1754671259478,8.8731,175.64,175.63,532.4]
[1754671259673,8.8731,175.64,175.63,532.34]
[1754671259882,8.8731,175.64,175.63,532.3]
[1754671260272,5.695,175.58,175.57,3.0]
[1754671260478,3.18,175.57,175.56,6.66622384]
[1754671260681,3.18,175.59,175.56,159.26622384]
[1754671260881,3.18,175.61,175.58,9.66622384]
[1754671261077,3.18,175.61,175.59,149.6]
[1754671261279,3.18,175.6,175.59,149.6]
[1754671261682,8.8746,175.6,175.59,149.6]
[1754671261980,3.18,175.6,175.58,9.66622384]
[1754671262179,8.8744,175.6,175.59,149.54]
[1754671262888,9.46277005,175.62,175.59,149.54]
[1754671263184,3.21741511,175.61,175.59,152.54]
[1754671263383,3.18,175.6,175.59,149.54]
[1754671263788,0.03741511,175.61,175.6,3.0]
[1754671263975,0.03741511,175.61,175.6,9.66622384]
[1754671264280,3.21741511,175.61,175.6,6.66622384]
[1754671265582,3.21741511,175.61,175.6,155.98622384]
[1754671266186,0.03741511,175.61,175.6,164.87062384]
[1754671266383,0.03741511,175.61,175.6,159.17622384]
[1754671266579,3.18,175.6,175.56,6.66622384]
[1754671266785,9.50581405,175.57,175.56,6.66622384]
[1754671266980,6.32581405,175.57,175.56,155.80622384]
[1754671267286,6.32581405,175.57,175.56,158.99622384]
[1754671267994,6.32581405,175.57,175.56,164.69192384]
[1754671268684,6.32581405,175.57,175.56,15.55192384]
[1754671268886,6.32581405,175.57,175.56,164.49192384]
[1754671269783,6.32581405,175.57,175.56,158.79622384]
[1754671270288,6.32581405,175.57,175.56,9.85622384]
[1754671270482,6.32581405,175.57,175.56,164.51192384]
[1754671270892,0.03741511,175.61,175.57,3.19]
[1754671270893,9.52613619,175.61,175.57,3.19]
[1754671271190,9.52613619,175.61,175.6,6.66622384]
[1754671271490,9.52613619,175.61,175.6,155.42622384]
[1754671271491,12.70613619,175.61,175.6,155.42622384]
[1754671272081,12.70613619,175.61,175.6,148.76]
[1754671272297,3.21741511,175.61,175.6,148.76]
[1754671272494,8.91151511,175.61,175.6,148.76]
[1754671273586,3.21741511,175.61,175.6,148.76]
[1754671274494,3.21741511,175.61,175.6,148.56]
[1754671275590,0.03741511,175.61,175.6,148.48]
[1754671276391,3.21741511,175.61,175.6,148.48]
[1754671276894,3.21741511,175.61,175.6,151.67]
[1754671278390,0.03741511,175.61,175.6,157.3644]
[1754671278887,0.03741511,175.61,175.6,151.67]
[1754671279693,3.21741511,175.61,175.6,151.67]
[1754671280090,3.21741511,175.61,175.6,127.63918473]
[1754671280297,3.21741511,175.61,175.6,124.44918473]
[1754671280792,8.91151511,175.61,175.6,124.44918473]
[1754671281295,8.91151511,175.61,175.58,6.66622384]
[1754671281491,8.91151511,175.61,175.6,147.94]
[1754671282300,8.8747,175.59,175.58,6.66622384]
[1754671282505,0.03741511,175.61,175.56,3.19]
[1754671282506,3.18,175.6,175.56,3.19]
[1754671282804,3.18,175.6,175.57,147.78]
[1754671283002,8.8747,175.59,175.58,147.78]
[1754671283194,3.18,175.59,175.55,9.85622384]
[1754671283399,5.6951,175.58,175.56,147.74]
[1754671283608,3.18,175.57,175.55,9.85622384]
[1754671283905,5.6957,175.56,175.55,9.85622384]
[1754671284105,3.18,175.56,175.55,147.66]
[1754671284304,3.18,175.55,175.53,6.66622384]
[1754671284501,3.18,175.55,175.53,9.85622384]
[1754671284726,3.2178633,175.56,175.55,3.19]
[1754671284904,3.2178633,175.56,175.55,150.87]
[1754671285316,3.2178633,175.56,175.55,157.53622384]
[1754671286516,8.9135633,175.56,175.55,6.66622384]
[1754671286807,3.18,175.55,175.53,6.66622384]
[1754671287008,8.876,175.55,175.54,147.54]
[1754671287408,0.0378633,175.56,175.45,9.85622384]
[1754671287711,3.18,175.51,175.49,3.19]
[1754671287909,3.18,175.51,175.5,147.58]
[1754671288613,0.03597608,175.52,175.51,3.19]
[1754671289010,0.03597608,175.52,175.51,8.8873]
[1754671289209,0.03597608,175.52,175.51,3.19]
[1754671289710,3.21597608,175.52,175.51,147.44]
[1754671290512,5.73297608,175.52,175.51,147.44]
[1754671291211,8.91297608,175.52,175.51,147.44]
[1754671291712,5.73297608,175.52,175.5,4.09113786]
[1754671292011,3.18,175.51,175.5,4.09113786]
[1754671292211,3.18,175.51,175.5,151.37113786]
[1754671292603,3.18,175.51,175.5,147.28]
[1754671292803,3.18,175.5,175.48,9.85732237]
[1754671293012,3.18,175.5,175.49,147.28]
[1754671293406,0.03597608,175.52,175.49,150.47]
[1754671293407,3.18,175.51,175.49,150.47]
[1754671293917,3.18,175.51,175.49,3.19]
[1754671294209,3.18,175.51,175.5,147.22]
[1754671294210,8.8773,175.51,175.5,147.22]
[1754671294713,3.18,175.51,175.5,147.22]
[1754671295320,8.8773,175.51,175.5,147.22]
[1754671295908,8.91317608,175.52,175.5,150.41]
[1754671296214,0.03597608,175.52,175.5,150.35]
[1754671296405,8.9473,175.51,175.5,147.22]
[1754671297013,5.73297608,175.52,175.5,150.35]
[1754671297213,8.98297608,175.52,175.5,150.35]
[1754671297611,3.28597608,175.52,175.5,150.35]
[1754671297819,8.9473,175.51,175.5,150.35]
[1754671298021,8.9473,175.51,175.5,147.22]
[1754671300821,5.698,175.49,175.48,6.66732237]
[1754671301021,8.948,175.49,175.48,6.66732237]
[1754671301219,8.948,175.49,175.48,153.38732237]
[1754671301813,8.948,175.49,175.48,9.79732237]
[1754671302023,3.25,175.49,175.48,156.43732237]
[1754671302423,5.6978,175.5,175.48,156.43732237]
[1754671302424,5.6978,175.5,175.49,3.13]
[1754671302722,8.9478,175.5,175.49,149.73]
[1754671303222,5.6978,175.5,175.49,149.73]
[1754671304218,3.28597608,175.52,175.5,3.13]
[1754671304521,3.28597608,175.52,175.51,9.79732237]
[1754671304817,8.98297608,175.52,175.51,9.79732237]
[1754671305623,8.98297608,175.52,175.51,6.66732237]
[1754671306722,8.98297608,175.52,175.51,0.33690719]
[1754671306919,8.9476,175.5,175.49,153.26732237]
[1754671307930,3.25,175.5,175.49,9.79732237]
[1754671308228,3.25,175.5,175.49,156.07732237]
[1754671308625,5.6975,175.51,175.49,156.07732237]
[1754671308820,8.9475,175.51,175.49,156.07732237]
[1754671309830,5.6976,175.5,175.49,156.07732237]
[1754671310035,8.9476,175.5,175.49,156.07732237]
[1754671311232,5.6981,175.49,175.47,3.13]
[1754671311423,0.03597608,175.52,175.47,3.13]
[1754671311424,0.03597608,175.52,175.49,6.66732237]
[1754671311630,12.74272852,175.53,175.49,6.66732237]
[1754671311930,3.28699193,175.52,175.5,146.0]
[1754671312530,5.6973,175.51,175.5,146.0]
[1754671312733,8.9473,175.51,175.5,146.0]
[1754671314342,5.6983,175.48,175.47,9.79732237]
[1754671314634,3.25,175.48,175.47,4.09223289]
[1754671314832,3.25,175.48,175.47,149.91223289]
[1754671315135,3.25,175.48,175.47,153.04223289]
[1754671315431,3.25,175.48,175.45,4.09223289]
[1754671315632,15.99272852,175.48,175.42,4.09223289]
[1754671315835,8.9496,175.44,175.43,145.82]
[1754671316733,5.6996,175.44,175.43,148.95]
[1754671317131,8.9496,175.44,175.43,148.95]
[1754671317528,8.9499,175.43,175.42,4.09223289]
[1754671317736,8.9499,175.43,175.42,149.87223289]
[1754671318038,8.9499,175.43,175.42,153.00223289]
[1754671318738,8.9499,175.43,175.42,7.22223289]
[1754671318942,8.9499,175.43,175.42,149.71223289]
[1754671319241,18.49893869,175.43,175.42,149.71223289]
[1754671319843,18.49893869,175.43,175.42,4.09223289]
[1754671320143,8.9499,175.43,175.42,4.09223289]
[1754671320343,8.9499,175.43,175.42,149.67223289]
[1754671320534,18.49861871,175.43,175.42,149.67223289]
[1754671320943,8.9499,175.43,175.42,149.67223289]
[1754671321139,8.9499,175.43,175.42,152.80223289]
[1754671321442,8.9499,175.43,175.42,149.61223289]
[1754671322339,18.49938198,175.43,175.42,7.22223289]
[1754671322546,9.54948198,175.43,175.42,152.72223289]
[1754671322738,3.25,175.43,175.42,152.72223289]
[1754671322938,3.25,175.43,175.42,149.59223289]
[1754671323140,8.9499,175.43,175.42,149.59223289]
[1754671323335,8.9499,175.43,175.42,4.09223289]
[1754671323536,8.9499,175.43,175.42,149.61223289]
[1754671323737,8.9499,175.43,175.42,152.74223289]
[1754671324334,8.9499,175.43,175.42,152.72223289]
[1754671325235,8.9499,175.43,175.42,149.59223289]
[1754671325643,8.9499,175.43,175.42,152.72223289]
[1754671326342,8.9499,175.43,175.42,132.7638243]
[1754671326539,12.74272852,175.45,175.43,3.05]
[1754671326739,15.81272852,175.45,175.44,7.14223289]
[1754671327037,3.07,175.45,175.44,7.14223289]
[1754671327439,3.07,175.45,175.42,128.59159141]
[1754671327741,12.74272852,175.45,175.43,4.09223289]
[1754671327941,8.7696,175.44,175.43,4.09223289]
[1754671330745,0.04243203,175.47,175.43,7.14223289]
[1754671330746,12.74272852,175.46,175.43,7.14223289]
[1754671330947,15.85516055,175.47,175.45,7.14223289]
[1754671331139,3.11243203,175.47,175.46,3.05]
[1754671331544,21.56819975,175.47,175.46,3.05]
[1754671332142,5.6989,175.46,175.45,7.14223289]
[1754671332344,21.52606772,175.46,175.45,4.09223289]
[1754671332844,21.52606772,175.46,175.45,7.14223289]
[1754671333045,12.75716772,175.46,175.45,7.14223289]
[1754671333236,12.75716772,175.46,175.45,152.26223289]
[1754671333536,15.86959975,175.47,175.45,152.26223289]
[1754671333740,8.7689,175.46,175.45,152.26223289]
[1754671334250,21.52606772,175.46,175.45,152.26223289]
[1754671335049,8.7689,175.46,175.45,152.26223289]
[1754671335247,21.52606772,175.46,175.45,152.26223289]
[1754671335850,21.52606772,175.46,175.45,7.14223289]
[1754671336150,21.52606772,175.46,175.45,144.96]
[1754671336341,8.7689,175.46,175.45,4.09223289]
[1754671336541,5.7,175.43,175.32,4.09223289]
[1754671336742,8.77,175.43,175.42,4.09223289]